[Event "LTU-ch Women 2019"]
[Site "Vilnius"]
[Date "2019.03.15"]
[Round "1"]
[White "Kaspute, Vesta"]
[Black "Fokaite, Gabriele"]
[Result "1-0"]
[ECO "B45"]
[WhiteElo "2037"]
[BlackElo "1549"]
[Annotator "NA RC"]
[PlyCount "71"]
[EventDate "2019.??.??"]
[EventCountry "LTU"]
[SourceTitle "playchess.com"]
[Source "ChessBase"]
[SourceQuality "1"]
[TimeControl "5400+30"]

1. e4 c5 2. Nf3 Nc6 3. d4 cxd4 4. Nxd4 e6 5. Nc3 Nf6 6. Nxc6 bxc6 7. e5 Nd5 8. Ne4 Be7 9. Be2 O-O 10. O-O Bb7 11. c4 Nb6 12. Be3 Qc7 13. Bc5 Bxc5 14. Nxc5 Rad8 15. Qd6 Qc8 16. a4 a5 17. Qd2 Qa8 18. Nxb7 Qxb7 19. Qxa5 Ra8 20. Qb4 Qc7 21. a5 Nc8 22. Qc5 d5 23. exd6 Nxd6 24. Bf3 Rfc8 25. a6 Ra7 26. Rfd1 Nf5 27. b4 Nh4 28. Bxc6 h6 29. b5 Raa8 30. Qh5 Ng6 31. Rd7 Qf4 32. Bxa8 Rxa8 33. Qf3 Qxf3 34. gxf3 Ne5 35. Rb7 Nxc4 36. a7 1-0

[Event "LTU-ch Women 2019"]
[Site "Vilnius"]
[Date "2019.03.15"]
[Round "1"]
[White "Ditmonaite, Viktorija"]
[Black "Plutaite, Ausra"]
[Result "0-1"]
[ECO "D53"]
[WhiteElo "1871"]
[BlackElo "1378"]
[Annotator "NA RC"]
[PlyCount "70"]
[EventDate "2019.??.??"]
[EventCountry "LTU"]
[SourceTitle "playchess.com"]
[Source "ChessBase"]
[SourceQuality "1"]
[TimeControl "5400+30"]

1. d4 e6 2. c4 d5 3. Nf3 Nf6 4. Bg5 Be7 5. Nc3 a6 6. cxd5 exd5 7. e3 b6 8. Be2 Bb7 9. O-O O-O 10. Ne5 Ne4 11. Bxe7 Qxe7 12. Nxe4 dxe4 13. Bc4 Nd7 14. Nxd7 Qxd7 15. Qe2 Qf5 16. Rac1 Rfd8 17. Rc3 Rd6 18. Rfc1 Rg6 19. Qf1 Bc8 20. Bb3 c5 21. dxc5 Qf3 22. Bd1 Qf6 23. g3 bxc5 24. Rxc5 Bd7 25. b4 h5 26. Bxh5 Rh6 27. Qc4 Re8 28. Qd5 Bh3 29. Rc7 Be6 30. Qd1 Qf5 31. g4 Qg5 32. R7c5 Qh4 33. Rc7 g6 34. Qd4 gxh5 35. Qxe4 hxg4 0-1

[Event "LTU-ch Women 2019"]
[Site "Vilnius"]
[Date "2019.03.15"]
[Round "1"]
[White "Malisauskiene, Marina"]
[Black "Jaskunaite, Auguste"]
[Result "1-0"]
[ECO "D55"]
[WhiteElo "1869"]
[BlackElo "1323"]
[Annotator "NA RC"]
[PlyCount "99"]
[EventDate "2019.??.??"]
[EventCountry "LTU"]
[SourceTitle "playchess.com"]
[Source "ChessBase"]
[SourceQuality "1"]
[TimeControl "5400+30"]

1. d4 d5 2. c4 e6 3. Nc3 Nf6 4. Bg5 Be7 5. e3 O-O 6. Nf3 b6 7. Bxf6 Bxf6 8. cxd5 exd5 9. Rc1 Bg4 10. Be2 c6 11. O-O Nd7 12. h3 Bf5 13. b4 Be6 14. Bd3 Be7 15. Qb3 Nf6 16. Ne5 Rc8 17. a3 Bd6 18. f4 c5 19. Ba6 cxd4 20. Bxc8 dxc3 21. Bxe6 fxe6 22. Nc6 Qd7 23. Rxc3 Ne4 24. Rc2 a6 25. Rfc1 Ng3 26. Qd3 b5 27. Nd4 e5 28. fxe5 Bxe5 29. Nf3 Bb8 30. Rd1 Nf5 31. Rc5 Ba7 32. Rxd5 Qe6 33. Re5 Bxe3+ 34. Qxe3 Nxe3 35. Rxe6 Nxd1 36. Rxa6 Rf5 37. Rc6 Ne3 38. Rc3 Nd1 39. Rc7 Rd5 40. h4 Kf8 41. Ng5 h6 42. Ne6+ Kg8 43. Rxg7+ Kh8 44. Rc7 Rd6 45. Nf4 Ra6 46. Rc5 Rxa3 47. Rxb5 Ra4 48. Nd5 Nb2 49. Rb7 Nd3 50. Nf6 1-0

[Event "LTU-ch Women 2019"]
[Site "Vilnius"]
[Date "2019.03.15"]
[Round "1"]
[White "Maziukaite, Kristina"]
[Black "Sibajeva, Marija"]
[Result "1/2-1/2"]
[ECO "D80"]
[WhiteElo "1491"]
[BlackElo "2023"]
[Annotator "NA RC"]
[PlyCount "143"]
[EventDate "2019.??.??"]
[EventCountry "LTU"]
[SourceTitle "playchess.com"]
[Source "ChessBase"]
[SourceQuality "1"]
[TimeControl "5400+30"]

1. d4 Nf6 2. c4 g6 3. Nc3 d5 4. Bg5 Ne4 5. Bh4 Nxc3 6. bxc3 Bg7 7. e3 c5 8. Qb1 Nc6 9. Nf3 Qa5 10. Qb3 cxd4 11. exd4 Nxd4 12. Nxd4 Bxd4 13. Rc1 dxc4 14. Bxc4 O-O 15. O-O Bf6 16. Bxf6 exf6 17. Rcd1 Qc7 18. Bd5 Rb8 19. c4 Bf5 20. Rfe1 b5 21. Qc3 Kg7 22. c5 Rfe8 23. c6 Rxe1+ 24. Rxe1 Rd8 25. Bf3 Be6 26. Qc5 a6 27. a3 Rd2 28. Rc1 Bf5 29. g3 Rd3 30. Rc3 Rd8 31. a4 bxa4 32. Qc4 Bh3 33. Qxa6 Qe5 34. Rc1 Re8 35. Bg2 Qe1+ 36. Qf1 Qxf1+ 37. Kxf1 Bxg2+ 38. Kxg2 Rc8 39. Kf3 Kf8 40. Ke4 Ke7 41. Kd5 Rd8+ 42. Kc5 Rd2 43. c7 Kd7 44. Kb6 Kc8 45. Rc4 a3 46. Ra4 Rb2+ 47. Kc6 Rc2+ 48. Kd6 Rd2+ 49. Kc6 Rc2+ 50. Kd6 Rxc7 51. Ra8+ Kb7 52. Rxa3 Rc2 53. Rf3 f5 54. Ke7 Rc7+ 55. Kf6 Kc8 56. Rd3 Rc2 57. Rf3 Rc7 58. Ra3 Rc2 59. Kxf7 Rxf2 60. h3 Rh2 61. h4 f4 62. gxf4 Rxh4 63. Rf3 Rh5 64. Ke6 Rf5 65. Rh3 Rh5 66. Rxh5 gxh5 67. Kf5 h6 68. Kg6 h4 69. f5 h3 70. f6 h2 71. f7 h1=Q 72. f8=Q+ 1/2-1/2

[Event "LTU-ch Women 2019"]
[Site "Vilnius"]
[Date "2019.03.15"]
[Round "1"]
[White "Sukyte, Kotryna"]
[Black "Ramanauskaite, Giedre"]
[Result "0-1"]
[ECO "C02"]
[WhiteElo "1354"]
[BlackElo "1870"]
[Annotator "NA"]
[PlyCount "120"]
[EventDate "2019.??.??"]
[EventCountry "LTU"]
[SourceTitle "playchess.com"]
[Source "ChessBase"]
[SourceQuality "1"]
[TimeControl "5400+30"]

1. e4 e6 2. d4 d5 3. e5 c5 4. c3 Nc6 5. Nf3 Qb6 6. Be2 Nge7 7. Na3 cxd4 8. cxd4 Nf5 9. Nc2 Bb4+ 10. Kf1 O-O 11. g3 Be7 12. b3 f6 13. exf6 Bxf6 14. Bb2 Bd7 15. Kg2 Kh8 16. h4 Rf7 17. Qd3 a6 18. g4 Nd6 19. Ng5 Bxg5 20. hxg5 g6 21. Qxg6 Rg8 22. Qh6 Ne4 23. g6 Rxf2+ 24. Kg1 Rg7 25. gxh7 Qd8 26. Rh2 Rxh2 27. Qxh2 Rxh7 28. Qg2 Qh4 29. Bd3 Rg7 30. Ne3 Nf6 31. Be2 Ne7 32. Qh2 Ng6 33. Qxh4+ Nxh4 34. Kh2 Ne4 35. Rf1 Kg8 36. Bd3 Bb5 37. Bxb5 axb5 38. a3 Rh7 39. Kg1 Nd2 40. Rf2 Nhf3+ 41. Kg2 Rh2+ 42. Kg3 Ne4+ 43. Kf4 Rxf2 44. Bc1 Nxd4+ 45. Ke5 Nxb3 46. Kxe6 Nxc1 47. Kxd5 Nf6+ 48. Kc5 Rf3 49. Ng2 Rxa3 50. Kxb5 Rg3 51. Nf4 Rxg4 52. Ne6 Nd3 53. Kb6 Rb4+ 54. Kc7 b5 55. Kb6 Rb1 56. Kc6 b4 57. Nc5 Rc1 58. Kb6 Rxc5 59. Ka6 Nd7 60. Kb7 Rc1 0-1

[Event "LTU-ch Women 2019"]
[Site "Vilnius"]
[Date "2019.03.16"]
[Round "2.2"]
[White "Butvilaite, Berta Reja"]
[Black "Kaspute, Vesta"]
[Result "0-1"]
[ECO "B07"]
[WhiteElo "1809"]
[BlackElo "2037"]
[Annotator "NA RC"]
[PlyCount "88"]
[EventDate "2019.??.??"]
[EventCountry "LTU"]
[SourceTitle "playchess.com"]
[Source "ChessBase"]
[SourceQuality "1"]
[TimeControl "5400+30"]

1. e4 {[%emt 0:00:00]} d6 {[%emt 0:00:00]} 2. d4 {[%emt 0:00:00]} Nf6 {[%emt 0:00:00]} 3. Nc3 {[%emt 0:00:00]} c6 {[%emt 0:00:05]} 4. Bg5 {[%emt 0:00:38]} Nbd7 {[%emt 0:03:27]} 5. Nf3 {[%emt 0:01:58]} e5 {[%emt 0:06:15]} 6. Bc4 {[%emt 0:03:12]} Be7 {[%emt 0:00:33]} 7. dxe5 {[%emt 0:03:18]} dxe5 {[%emt 0:00:36]} 8. Qd2 {[%emt 0:02:10]} b5 {[%emt 0:05:26]} 9. Bxf6 {[%emt 0:00:55]} Bxf6 {[%emt 0:02:46]} 10. Nxb5 {[%emt 0:10:26]} cxb5 {[%emt 0:11:47]} 11. Bxf7+ {[%emt 0:02:40]} Kf8 {[%emt 0:33:18]} 12. O-O-O {[%emt 0:04:10]} Qe7 {[%emt 0:03:05]} 13. Bd5 {[%emt 0:03:50]} Rb8 {[%emt 0:00:13]} 14. g4 {[%emt 0:03:24]} h6 {[%emt 0:06:47]} 15. h4 {[%emt 0:04:20]} g6 {[%emt 0:03:19]} 16. g5 {[%emt 0:07:13]} Bg7 {[%emt 0:04:54]} 17. Bc6 {[%emt 0:15:05]} Nc5 {[%emt 0:04:47]} 18. Qd8+ {[%emt 0:07:52]} Qxd8 {[%emt 0:06:11]} 19. Rxd8+ {[%emt 0:00:13]} Ke7 {[%emt 0:00:04]} 20. Rxh8 {[%emt 0:08:52]} Bxh8 {[%emt 0:00:01]} 21. gxh6 {[%emt 0:00:35]} Bb7 {[%emt 0:00:39]} 22. Bxb7 Rxb7 23. Ng5 Ne6 24. Rg1 Nf4 25. Kd2 Rb8 26. Rg3 Rd8+ 27. Ke3 Bf6 28. a3 Rh8 29. h7 Bxg5 30. hxg5 Rxh7 31. Kd2 Rh3 32. Rg4 Ne6 33. c3 Rh5 34. Rg3 Rxg5 35. Rh3 Rh5 36. Rd3 Nf4 37. Rg3 Kf6 38. Kc2 Rh3 39. Rg1 Rh2 40. Rf1 Nh3 41. Kb3 Rxf2 42. Rd1 g5 43. Rd3 g4 44. Rg3 Kg5 0-1

[Event "LTU-ch Women 2019"]
[Site "Vilnius"]
[Date "2019.03.16"]
[Round "2.3"]
[White "Ramanauskaite, Giedre"]
[Black "Perazzo, Kamila"]
[Result "1-0"]
[ECO "D53"]
[WhiteElo "1870"]
[BlackElo "1035"]
[Annotator "NA"]
[PlyCount "91"]
[EventDate "2019.??.??"]
[EventCountry "LTU"]
[SourceTitle "playchess.com"]
[Source "ChessBase"]
[SourceQuality "1"]
[TimeControl "5400+30"]

1. d4 {[%emt 0:00:00]} d5 {[%emt 0:00:00]} 2. c4 {[%emt 0:00:00]} e6 {[%emt 0:00:00]} 3. Nc3 {[%emt 0:00:00]} Nf6 {[%emt 0:00:00]} 4. Bg5 {[%emt 0:00:08]} Be7 {[%emt 0:00:00]} 5. e3 {[%emt 0:00:19]} Nbd7 {[%emt 0:00:39]} 6. Nf3 {[%emt 0:00:46]} h6 {[%emt 0:00:47]} 7. Bh4 {[%emt 0:00:14]} O-O {[%emt 0:05:40]} 8. Bd3 {[%emt 0:01:01]} b6 {[%emt 0:02:06]} 9. O-O {[%emt 0:01:28]} c5 {[%emt 0:00:30]} 10. cxd5 {[%emt 0:02:03]} exd5 {[%emt 0:01:25]} 11. Bb5 {[%emt 0:01:51]} a6 {[%emt 0:04:07]} 12. Bc6 {[%emt 0:01:40]} Ra7 {[%emt 0:01:35]} 13. dxc5 {[%emt 0:05:12]} Bb7 {[%emt 0:06:40]} 14. Bxb7 {[%emt 0:01:43]} Rxb7 {[%emt 0:02:27]} 15. cxb6 {[%emt 0:00:15]} Nxb6 {[%emt 0:00:15]} 16. b3 {[%emt 0:01:22]} Rd7 {[%emt 0:01:09]} 17. Rc1 {[%emt 0:03:55]} Ne4 {[%emt 0:00:44]} 18. Bxe7 {[%emt 0:00:34]} Qxe7 {[%emt 0:00:08]} 19. Qd4 {[%emt 0:01:44]} Rc8 {[%emt 0:08:39]} 20. Nxd5 {[%emt 0:04:34]} Qe6 {[%emt 0:13:10]} 21. Qxb6 {[%emt 0:03:10]} Rxc1 {[%emt 0:02:10]} 22. Rxc1 {[%emt 0:00:25]} Rd6 {[%emt 0:04:01]} 23. Qb8+ {[%emt 0:01:33]} Kh7 {[%emt 0:03:22]} 24. Nf4 {[%emt 0:00:20]} Qd7 {[%emt 0:01:09]} 25. Nd4 {[%emt 0:01:02]} Qe7 {[%emt 0:05:53]} 26. Nf5 {[%emt 0:01:33]} Rd8 {[%emt 0:03:12]} 27. Nxe7 {[%emt 0:00:12]} Rxb8 {[%emt 0:00:05]} 28. f3 {[%emt 0:00:28]} Nf6 {[%emt 0:02:51]} 29. Nfd5 {[%emt 0:00:30]} Nxd5 {[%emt 0:00:15]} 30. Nxd5 {[%emt 0:00:07]} Rd8 {[%emt 0:00:04]} 31. e4 {[%emt 0:00:16]} f5 {[%emt 0:00:18]} 32. Rc6 {[%emt 0:00:28]} a5 {[%emt 0:01:15]} 33. Ra6 {[%emt 0:00:34]} fxe4 {[%emt 0:00:10]} 34. fxe4 {[%emt 0:00:06]} Re8 {[%emt 0:00:18]} 35. Rxa5 {[%emt 0:00:31]} Rxe4 {[%emt 0:00:07]} 36. b4 {[%emt 0:00:25]} Re1+ {[%emt 0:00:50]} 37. Kf2 {[%emt 0:00:10]} Rb1 {[%emt 0:00:05]} 38. b5 {[%emt 0:00:19]} Kg8 {[%emt 0:00:34]} 39. b6 {[%emt 0:02:23]} Kf8 {[%emt 0:00:33]} 40. a4 {[%emt 0:00:14]} Ke8 {[%emt 0:00:11]} 41. Rb5 {[%emt 0:00:11]} Rc1 {[%emt 0:05:08]} 42. b7 {[%emt 0:00:15]} Rc2+ {[%emt 0:00:06]} 43. Kf3 {[%emt 0:00:10]} Kd8 {[%emt 0:00:23]} 44. b8=Q+ {[%emt 0:00:13]} Rc8 {[%emt 0:00:16]} 45. Qd6+ {[%emt 0:00:09]} Ke8 {[%emt 0:00:09]} 46. Qe7# {[%emt 0:00:06]} 1-0

[Event "LTU-ch Women 2019"]
[Site "Vilnius"]
[Date "2019.03.16"]
[Round "2.4"]
[White "Ravlusevic, Evelina"]
[Black "Malisauskiene, Marina"]
[Result "1/2-1/2"]
[ECO "E12"]
[WhiteElo "1704"]
[BlackElo "1869"]
[Annotator "NA RC"]
[PlyCount "296"]
[EventDate "2019.??.??"]
[EventCountry "LTU"]
[SourceTitle "playchess.com"]
[Source "ChessBase"]
[SourceQuality "1"]
[TimeControl "5400+30"]

1. d4 {[%emt 0:00:00]} Nf6 {[%emt 0:00:00]} 2. c4 {[%emt 0:00:00]} e6 {[%emt 0:00:19]} 3. Nf3 {[%emt 0:00:24]} b6 {[%emt 0:00:16]} 4. Bg5 {[%emt 0:02:20]} Bb7 {[%emt 0:00:27]} 5. e3 {[%emt 0:00:10]} Bb4+ {[%emt 0:02:58]} 6. Nbd2 {[%emt 0:01:53]} h6 {[%emt 0:02:17]} 7. Bh4 {[%emt 0:00:46]} g5 {[%emt 0:02:40]} 8. Bg3 {[%emt 0:00:17]} g4 {[%emt 0:00:33]} 9. Ne5 {[%emt 0:01:37]} Ne4 {[%emt 0:01:49]} 10. Qxg4 {[%emt 0:02:27]} Bxd2+ {[%emt 0:02:07]} 11. Kd1 {[%emt 0:00:45]} Bb4 {[%emt 0:10:52]} 12. Bh4 {[%emt 0:04:30]} Nxf2+ {[%emt 0:27:23]} 13. Bxf2 {[%emt 0:00:14]} Qg5 {[%emt 0:00:05]} 14. Qh3 {[%emt 0:04:30]} Be7 {[%emt 0:03:31]} 15. Nf3 {[%emt 0:02:08]} Qg7 {[%emt 0:01:03]} 16. Qg3 {[%emt 0:02:45]} Qxg3 {[%emt 0:00:33]} 17. Bxg3 {[%emt 0:00:11]} d6 {[%emt 0:00:04]} 18. Bd3 {[%emt 0:00:32]} Nd7 {[%emt 0:00:26]} 19. Rf1 {[%emt 0:07:27]} h5 {[%emt 0:03:52]} 20. e4 {[%emt 0:03:54]} h4 {[%emt 0:02:31]} 21. Bf4 {[%emt 0:03:25]} Rg8 {[%emt 0:00:23]} 22. g3 {[%emt 0:01:15]} hxg3 {[%emt 0:00:16]} 23. Bxg3 {[%emt 0:00:27]} O-O-O {[%emt 0:02:50]} 24. Kc2 {[%emt 0:07:30]} Rg4 {[%emt 0:00:51]} 25. Rae1 {[%emt 0:01:21]} Rh8 {[%emt 0:01:25]} 26. Nd2 {[%emt 0:01:03]} f6 {[%emt 0:00:33]} 27. b4 {[%emt 0:05:37]} Rhg8 {[%emt 0:03:12]} 28. Kc3 {[%emt 0:01:27]} Kd8 {[%emt 0:00:53]} 29. Be2 {[%emt 0:00:48]} R4g7 {[%emt 0:01:04]} 30. Bf3 {[%emt 0:01:03]} c5 {[%emt 0:03:41]} 31. bxc5 {[%emt 0:02:15]} dxc5 {[%emt 0:00:05]} 32. d5 {[%emt 0:01:03]} e5 {[%emt 0:00:21]} 33. a4 {[%emt 0:01:45]} Kc7 {[%emt 0:01:09]} 34. Bg2 {[%emt 0:00:28]} Rh8 {[%emt 0:01:42]} 35. Nf3 {[%emt 0:01:36]} Rg4 {[%emt 0:00:02]} 36. Ng1 {[%emt 0:01:23]} Nf8 {[%emt 0:03:03]} 37. Bh3 {[%emt 0:00:31]} Rg6 {[%emt 0:00:09]} 38. Bf5 {[%emt 0:00:26]} Rgh6 {[%emt 0:00:02]} 39. Nf3 {[%emt 0:01:18]} Bd6 {[%emt 0:01:04]} 40. Rg1 {[%emt 0:02:08]} Bc8 {[%emt 0:03:16]} 41. Bxc8 {[%emt 0:01:08]} Kxc8 {[%emt 0:00:01]} 42. a5 {[%emt 0:00:51]} Nd7 {[%emt 0:01:44]} 43. axb6 {[%emt 0:00:23]} axb6 {[%emt 0:00:02]} 44. Ra1 {[%emt 0:00:16]} Kb7 {[%emt 0:00:39]} 45. Ra2 {[%emt 0:00:11]} Rh3 {[%emt 0:01:28]} 46. Rga1 {[%emt 0:00:29]} Bb8 {[%emt 0:00:05]} 47. Kd3 {[%emt 0:00:50]} R8h7 {[%emt 0:02:39]} 48. Rg2 {[%emt 0:00:26]} R3h5 {[%emt 0:01:10]} 49. Nh4 Rxh4 50. Bxh4 Rxh4 51. Rg7 Rh3+ 52. Rg3 Rxh2 53. Rg7 Rh3+ 54. Kd2 Kc7 55. Rag1 Rh8 56. Rf7 Rf8 57. Re7 Kc8 58. Rgg7 Rd8 59. Re6 Bc7 60. Rc6 Kb7 61. Kc3 f5 62. exf5 e4 63. Re6 Kc8 64. Rc6 Kb7 65. Re6 Kc8 66. Kc2 Rh8 67. Rc6 Kd8 68. d6 Bb8 69. Rg2 Rf8 70. Rf2 Rf6 71. Rg2 Rxd6 72. Rg8+ Ke7 73. Rcc8 e3 74. Rce8+ Kf6 75. Rxe3 Kxf5 76. Re2 Rd4 77. Rf2+ Bf4 78. Kc3 Ne5 79. Rf8+ Kg4 80. Rg8+ Kf5 81. Rf8+ Kg4 82. Rg8+ Kh3 83. Rf1 Rxc4+ 84. Kb3 Rb4+ 85. Ka3 Ng4 86. Rg1 Be5 87. Rg5 Bg3 88. Rh5+ Bh4 89. Rh1+ Nh2 90. Rg1 Rg4 91. Rb1 Rg6 92. Rh8 Nf3 93. Rb8 Kg4 94. R8xb6 Rxb6 95. Rxb6 Bf2 96. Rc6 Ne5 97. Rxc5 Bxc5+ 98. Kb3 Kf4 99. Kc3 Ke4 100. Kb3 Kd5 101. Kc3 Bd4+ 102. Kb4 Kc6 103. Kb3 Kc5 104. Kc2 Be3 105. Kc3 Bf4 106. Kb3 Nd3 107. Kc3 Nb4 108. Kb3 Bd2 109. Ka3 Kc4 110. Kb2 Bc3+ 111. Kc1 Nc6 112. Kb1 Kb3 113. Kc1 Nd4 114. Kd1 Kc4 115. Kc1 Kd3 116. Kb1 Ne6 117. Kc1 Nc5 118. Kb1 Nb3 119. Ka2 Kc4 120. Kb1 Nd4 121. Ka2 Kb4 122. Kb1 Kb3 123. Kc1 Bb4 124. Kd1 Kc4 125. Kc1 Kd3 126. Kb2 Kd2 127. Kb1 Kc3 128. Kc1 Nb3+ 129. Kd1 Nd4 130. Ke1 Kd3+ 131. Kf2 Ke4 132. Kg2 Kf4 133. Kf2 Nf3 134. Ke2 Ke4 135. Kf2 Bd6 136. Ke2 Bg3 137. Kd1 Kd3 138. Kc1 Be5 139. Kd1 Bc3 140. Kc1 Nd2 141. Kd1 Ne4 142. Kc1 Nf2 143. Kb1 Nd1 144. Kc1 Nb2 145. Kb1 Kd2 146. Ka2 Kc2 147. Ka3 Ba5 148. Ka2 Bb4 1/2-1/2

[Event "LTU-ch Women 2019"]
[Site "Vilnius"]
[Date "2019.03.16"]
[Round "2.5"]
[White "Plutaite, Ausra"]
[Black "Maciulaityte, Barbora"]
[Result "0-1"]
[ECO "B76"]
[WhiteElo "1378"]
[BlackElo "1765"]
[Annotator "NA"]
[PlyCount "116"]
[EventDate "2019.??.??"]
[EventCountry "LTU"]
[SourceTitle "playchess.com"]
[Source "ChessBase"]
[SourceQuality "1"]
[TimeControl "5400+30"]

1. e4 {[%emt 0:00:00]} c5 {[%emt 0:00:00]} 2. Nf3 {[%emt 0:00:30]} d6 {[%emt 0:00:30]} 3. d4 {[%emt 0:00:30]} cxd4 {[%emt 0:00:30]} 4. Nxd4 {[%emt 0:00:30]} Nf6 {[%emt 0:00:30]} 5. Nc3 {[%emt 0:00:30]} g6 {[%emt 0:00:30]} 6. Be3 {[%emt 0:00:30]} Bg7 {[%emt 0:00:30]} 7. f3 {[%emt 0:00:30]} O-O {[%emt 0:00:30]} 8. Qd2 {[%emt 0:00:30]} Nc6 {[%emt 0:00:35]} 9. g4 {[%emt 0:00:30]} Be6 {[%emt 0:00:30]} 10. Nxe6 {[%emt 0:00:30]} fxe6 {[%emt 0:00:30]} 11. O-O-O {[%emt 0:00:54]} Qc8 {[%emt 0:03:07]} 12. h4 {[%emt 0:01:39]} Ne5 {[%emt 0:18:29]} 13. Be2 {[%emt 0:05:14]} Nc4 {[%emt 0:06:03]} 14. Bxc4 {[%emt 0:00:30]} Qxc4 {[%emt 0:00:30]} 15. Bd4 {[%emt 0:06:54]} b5 {[%emt 0:08:03]} 16. Qd3 {[%emt 0:05:58]} Qxd3 {[%emt 0:02:50]} 17. Rxd3 {[%emt 0:00:30]} a6 {[%emt 0:00:30]} 18. h5 {[%emt 0:05:45]} Bh6+ {[%emt 0:04:21]} 19. Kb1 {[%emt 0:02:13]} g5 {[%emt 0:04:41]} 20. f4 {[%emt 0:02:46]} gxf4 {[%emt 0:04:26]} 21. g5 {[%emt 0:00:30]} Bxg5 {[%emt 0:00:30]} 22. Rg1 {[%emt 0:00:30]} h6 {[%emt 0:00:30]} 23. Bxf6 {[%emt 0:02:04]} Rxf6 {[%emt 0:00:30]} 24. e5 {[%emt 0:00:30]} dxe5 {[%emt 0:03:53]} 25. Ne4 {[%emt 0:00:30]} Rf5 {[%emt 0:00:30]} 26. Rd7 {[%emt 0:00:46]} Kf8 {[%emt 0:01:31]} 27. Nc5 {[%emt 0:00:30]} Kf7 {[%emt 0:02:14]} 28. Ne4 {[%emt 0:01:03]} Ke8 {[%emt 0:00:39]} 29. Rc7 {[%emt 0:02:46]} f3 {[%emt 0:05:07]} 30. Rf1 {[%emt 0:00:52]} Rd8 {[%emt 0:06:10]} 31. Nc5 {[%emt 0:02:14]} Rd6 {[%emt 0:02:21]} 32. Rc8+ {[%emt 0:02:53]} Kf7 {[%emt 0:00:30]} 33. Ne4 {[%emt 0:00:30]} Rd4 {[%emt 0:03:01]} 34. Nf2 {[%emt 0:02:40]} Bh4 {[%emt 0:02:58]} 35. c3 {[%emt 0:01:25]} Rc4 {[%emt 0:03:09]} 36. Rxc4 {[%emt 0:00:30]} bxc4 {[%emt 0:00:30]} 37. Ng4 {[%emt 0:00:30]} Kg7 {[%emt 0:01:01]} 38. Ne3 {[%emt 0:03:08]} Rf4 {[%emt 0:00:30]} 39. Kc2 {[%emt 0:00:30]} f2 {[%emt 0:01:16]} 40. Ng2 {[%emt 0:00:30]} Rg4 {[%emt 0:01:16]} 41. Ne3 {[%emt 0:01:21]} Re4 {[%emt 0:00:30]} 42. Ng2 {[%emt 0:01:14]} Bg3 {[%emt 0:00:30]} 43. Kd2 {[%emt 0:00:58]} Kf6 {[%emt 0:02:08]} 44. b4 {[%emt 0:01:12]} cxb3 {[%emt 0:01:02]} 45. axb3 {[%emt 0:00:30]} Kg5 {[%emt 0:01:03]} 46. Kd3 {[%emt 0:01:12]} Re1 {[%emt 0:00:30]} 47. Ne3 {[%emt 0:00:16]} Bf4 {[%emt 0:02:01]} 48. Rxf2 {[%emt 0:00:48]} Rxe3+ {[%emt 0:00:30]} 49. Kc2 {[%emt 0:01:05]} e4 {[%emt 0:00:49]} 50. c4 {[%emt 0:00:30]} Rf3 {[%emt 0:00:30]} 51. Re2 {[%emt 0:00:40]} e3 {[%emt 0:00:30]} 52. Kd3 {[%emt 0:00:30]} Rf2 {[%emt 0:00:30]} 53. c5 {[%emt 0:00:30]} Rxe2 {[%emt 0:00:30]} 54. Kxe2 {[%emt 0:00:30]} Kxh5 {[%emt 0:00:30]} 55. c6 {[%emt 0:00:30]} Kg4 {[%emt 0:00:30]} 56. Kf1 {[%emt 0:00:41]} Kf3 {[%emt 0:00:30]} 57. b4 {[%emt 0:00:30]} e2+ {[%emt 0:00:30]} 58. Ke1 {[%emt 0:00:30]} Bg3+ {[%emt 0:00:30]} 0-1

[Event "LTU-ch Women 2019"]
[Site "Vilnius"]
[Date "2019.03.16"]
[Round "2.6"]
[White "Sibajeva, Marija"]
[Black "Griksaite, Ieva"]
[Result "1-0"]
[ECO "C63"]
[WhiteElo "2023"]
[BlackElo "1294"]
[Annotator "NA"]
[PlyCount "115"]
[EventDate "2019.??.??"]
[EventCountry "LTU"]
[SourceTitle "playchess.com"]
[Source "ChessBase"]
[SourceQuality "1"]
[TimeControl "5400+30"]

1. e4 {[%emt 0:00:00]} e5 {[%emt 0:00:00]} 2. Nf3 {[%emt 0:00:00]} Nc6 {[%emt 0:00:00]} 3. Bb5 {[%emt 0:00:04]} f5 {[%emt 0:00:07]} 4. Nc3 {[%emt 0:00:22]} fxe4 {[%emt 0:01:14]} 5. Nxe4 {[%emt 0:00:06]} d5 {[%emt 0:00:07]} 6. Ng3 {[%emt 0:05:01]} Bg4 {[%emt 0:00:58]} 7. h3 {[%emt 0:00:56]} Bxf3 {[%emt 0:00:56]} 8. Qxf3 {[%emt 0:00:09]} Qd6 {[%emt 0:01:27]} 9. O-O {[%emt 0:08:39]} O-O-O {[%emt 0:01:48]} 10. Bxc6 {[%emt 0:16:13]} Qxc6 {[%emt 0:00:31]} 11. Qe3 {[%emt 0:08:35]} Kb8 {[%emt 0:08:16]} 12. c3 {[%emt 0:00:51]} e4 {[%emt 0:03:51]} 13. d4 {[%emt 0:01:11]} Nf6 {[%emt 0:01:10]} 14. Bd2 {[%emt 0:02:53]} Qb6 {[%emt 0:02:04]} 15. b3 {[%emt 0:04:47]} c6 {[%emt 0:02:28]} 16. f3 {[%emt 0:04:39]} Bd6 {[%emt 0:04:24]} 17. fxe4 {[%emt 0:01:03]} dxe4 {[%emt 0:00:34]} 18. Nf5 {[%emt 0:01:04]} Qc7 {[%emt 0:00:49]} 19. Qg5 {[%emt 0:01:40]} h6 {[%emt 0:02:55]} 20. Qxg7 {[%emt 0:01:15]} Qxg7 {[%emt 0:00:40]} 21. Nxg7 {[%emt 0:00:07]} Nd5 {[%emt 0:00:36]} 22. Nf5 {[%emt 0:00:51]} Bc7 {[%emt 0:01:02]} 23. c4 {[%emt 0:01:30]} Nb6 {[%emt 0:00:38]} 24. Bxh6 {[%emt 0:04:18]} Rdg8 {[%emt 0:01:06]} 25. Rae1 {[%emt 0:01:29]} Re8 {[%emt 0:09:46]} 26. Bf4 {[%emt 0:01:52]} Bxf4 {[%emt 0:00:22]} 27. Rxf4 {[%emt 0:00:04]} Rhf8 {[%emt 0:00:21]} 28. g4 {[%emt 0:00:37]} e3 {[%emt 0:00:31]} 29. Rf3 {[%emt 0:00:17]} e2 {[%emt 0:00:11]} 30. Rf2 {[%emt 0:00:43]} Re4 {[%emt 0:00:09]} 31. Rfxe2 {[%emt 0:00:28]} Rxe2 {[%emt 0:00:10]} 32. Rxe2 {[%emt 0:00:03]} Kc7 {[%emt 0:00:07]} 33. Re7+ {[%emt 0:00:21]} Nd7 {[%emt 0:00:24]} 34. Kg2 {[%emt 0:01:05]} b6 {[%emt 0:00:26]} 35. d5 {[%emt 0:01:07]} cxd5 {[%emt 0:00:12]} 36. cxd5 {[%emt 0:00:22]} Rg8 {[%emt 0:00:27]} 37. Kg3 {[%emt 0:01:26]} a6 {[%emt 0:00:14]} 38. Kf4 {[%emt 0:01:02]} a5 {[%emt 0:00:11]} 39. g5 {[%emt 0:00:26]} b5 {[%emt 0:00:23]} 40. Re6 {[%emt 0:00:55]} a4 {[%emt 0:00:12]} 41. bxa4 {[%emt 0:00:27]} bxa4 {[%emt 0:00:15]} 42. Rc6+ {[%emt 0:00:47]} Kb7 {[%emt 0:00:09]} 43. h4 {[%emt 0:01:58]} Nb6 {[%emt 0:00:26]} 44. Ke5 {[%emt 0:01:12]} Re8+ {[%emt 0:00:12]} 45. Re6 {[%emt 0:00:27]} Rh8 {[%emt 0:00:07]} 46. g6 {[%emt 0:01:08]} Nc4+ {[%emt 0:00:14]} 47. Kd4 {[%emt 0:00:38]} Nd2 {[%emt 0:00:19]} 48. g7 {[%emt 0:00:15]} Rg8 {[%emt 0:00:23]} 49. Re7+ {[%emt 0:00:10]} Kc8 {[%emt 0:00:15]} 50. Nd6+ {[%emt 0:00:44]} Kd8 {[%emt 0:00:08]} 51. Re8+ {[%emt 0:00:43]} Rxe8 {[%emt 0:00:11]} 52. Nxe8 {[%emt 0:00:03]} Kxe8 {[%emt 0:00:10]} 53. g8=Q+ {[%emt 0:00:04]} Kd7 {[%emt 0:00:14]} 54. Qf7+ {[%emt 0:00:14]} Kd6 {[%emt 0:00:15]} 55. Qf4+ {[%emt 0:00:07]} Kd7 {[%emt 0:00:16]} 56. Qxd2 {[%emt 0:00:03]} Kc7 {[%emt 0:00:22]} 57. Qc3+ {[%emt 0:00:08]} Kd7 {[%emt 0:00:22]} 58. Qc6+ {[%emt 0:00:07]} 1-0